bitfinex/quotes_BTCUSD_20240617
["timestamp","ask_amount","ask_price","bid_price","bid_amount"]
[1718658250442,0.49924736,66586.0,66585.0,0.016935]
[1718658250872,0.85380511,66586.0,66585.0,0.016935]
[1718658251070,0.49924736,66586.0,66585.0,0.016935]
[1718658251360,0.49724736,66586.0,66585.0,0.000935]
[1718658251712,0.79961036,66586.0,66585.0,0.000935]
[1718658251881,0.89961036,66586.0,66585.0,0.000935]
[1718658252090,0.95331051,66586.0,66585.0,0.000935]
[1718658252581,0.95331109,66586.0,66585.0,0.001935]
[1718658252907,0.90517879,66586.0,66585.0,0.001935]
[1718658253108,0.9399157,66586.0,66585.0,0.001935]
[1718658253339,0.9429157,66586.0,66585.0,0.001935]
[1718658253591,0.90817879,66586.0,66585.0,0.001935]
[1718658253796,1.76369994,66586.0,66585.0,0.001935]
[1718658254001,1.90811738,66586.0,66585.0,0.001935]
[1718658254338,2.07542698,66586.0,66585.0,0.001935]
[1718658254801,1.97542698,66586.0,66585.0,0.001935]
[1718658255015,1.67506398,66586.0,66585.0,0.001935]
[1718658255215,2.2755924,66586.0,66585.0,0.002935]
[1718658255440,2.26798654,66586.0,66585.0,0.002935]
[1718658256316,2.26498654,66586.0,66585.0,0.002935]
[1718658256513,2.26498654,66586.0,66585.0,0.003935]
[1718658256514,2.27298654,66586.0,66585.0,0.003935]
[1718658256663,2.35890825,66586.0,66585.0,0.003935]
[1718658257075,0.450727,66559.0,66558.0,0.1806]
[1718658257289,0.150236,66562.0,66561.0,0.02]
[1718658257710,0.150238,66561.0,66558.0,0.02]
[1718658257906,0.150238,66561.0,66560.0,0.02]
[1718658258114,0.450714,66561.0,66560.0,0.02]
[1718658259204,0.300446,66568.0,66564.0,0.02]
[1718658259410,0.1,66571.0,66568.0,0.02]
[1718658259641,0.1,66570.0,66569.0,0.00959307]
[1718658259815,0.400435,66570.0,66565.0,0.07593072]
[1718658260629,0.150226,66566.0,66565.0,0.09593072]
[1718658260828,0.751177,66562.0,66561.0,0.0898]
[1718658261378,0.300446,66568.0,66556.0,0.02]
[1718658261676,0.300446,66568.0,66565.0,0.001]
[1718658261677,0.751132,66566.0,66565.0,0.001]
[1718658261896,0.851132,66566.0,66565.0,0.001]
[1718658262106,1.452038,66566.0,66565.0,0.001]
[1718658262735,1.452038,66566.0,66565.0,0.002]
[1718658263175,0.450747,66556.0,66555.0,0.1678]
[1718658263463,0.450747,66556.0,66555.0,0.17409309]
[1718658263704,0.751245,66556.0,66555.0,0.17409309]
[1718658263920,0.001,66562.0,66556.0,0.02]
[1718658264111,0.150242,66559.0,66558.0,0.02]
[1718658264328,0.150244,66558.0,66557.0,0.02]
[1718658264530,0.150244,66558.0,66557.0,0.08040131]
[1718658264671,0.150244,66558.0,66557.0,0.1066944]
[1718658264872,0.3002039,66560.0,66557.0,0.1066944]
[1718658265100,0.150244,66558.0,66557.0,0.0866944]
[1718658265481,0.450733,66558.0,66557.0,0.1066944]
[1718658265701,0.450733,66558.0,66557.0,0.0866944]
[1718658266478,0.450733,66558.0,66557.0,0.00629309]
[1718658266686,0.450733,66558.0,66557.0,0.02629309]
[1718658266884,0.450733,66558.0,66557.0,0.027]
[1718658267097,0.450733,66558.0,66557.0,0.03329309]
[1718658267309,0.450733,66558.0,66557.0,0.01129309]
[1718658267679,0.451733,66558.0,66557.0,0.03929309]
[1718658267886,0.452733,66558.0,66557.0,0.03929309]
[1718658268346,0.452733,66558.0,66557.0,0.01929309]
[1718658269077,0.753222,66558.0,66557.0,0.01929309]
[1718658270124,0.753222,66558.0,66557.0,0.03929309]
[1718658270280,0.753222,66558.0,66557.0,0.01929309]
[1718658272397,0.452733,66558.0,66557.0,0.03929309]
[1718658274082,0.45245389,66558.0,66557.0,0.03929309]
[1718658275864,0.45245389,66558.0,66557.0,0.04022809]
[1718658276107,0.45245389,66558.0,66557.0,0.19342809]
[1718658276108,0.002,66558.0,66557.0,0.19342809]
[1718658278329,0.00085,66566.0,66565.0,0.02]
[1718658278707,0.00085,66566.0,66565.0,1.17063468]
[1718658278910,0.00085,66566.0,66565.0,0.86017668]
[1718658279037,0.00085,66566.0,66565.0,1.01728815]
[1718658279244,0.00085,66566.0,66565.0,1.61820415]
[1718658279646,0.00085,66566.0,66565.0,1.61219559]
[1718658280250,0.00185,66566.0,66565.0,1.61219559]
[1718658280459,0.00029208,66586.0,66585.0,0.1685]
[1718658280679,0.15047308,66586.0,66585.0,0.1685]
[1718658280879,0.00029208,66586.0,66585.0,0.15480932]
[1718658281080,0.00029208,66586.0,66585.0,0.1685]
[1718658281407,0.00029208,66586.0,66585.0,0.17480932]
[1718658281818,0.10029208,66586.0,66585.0,0.17480932]
[1718658282036,0.10329208,66586.0,66585.0,0.17580932]
[1718658282229,0.10329208,66586.0,66585.0,0.1705]
[1718658282475,0.25347308,66586.0,66585.0,0.1505]
[1718658282894,0.2760695,66586.0,66585.0,0.1505]
[1718658283344,0.2760695,66586.0,66585.0,0.1705]
[1718658283975,0.1258885,66586.0,66585.0,0.1705]
[1718658284184,0.0258885,66586.0,66585.0,0.1705]
[1718658284614,0.00329208,66586.0,66585.0,0.18755]
[1718658284829,0.00329208,66586.0,66585.0,0.19381451]
[1718658285029,0.00329208,66586.0,66585.0,0.17676451]
[1718658286081,0.15347308,66586.0,66585.0,0.1505]
[1718658286282,0.15347308,66586.0,66585.0,0.002]
[1718658286283,0.75419908,66586.0,66585.0,0.002]
[1718658286493,1.15456208,66586.0,66585.0,0.00826451]
[1718658286693,1.15456208,66586.0,66585.0,0.002]
[1718658287896,1.19730725,66586.0,66585.0,0.002]
[1718658288686,1.37026522,66586.0,66585.0,0.002]
[1718658289224,1.42212018,66586.0,66585.0,0.002]
[1718658289863,1.24916221,66586.0,66585.0,0.002]
[1718658290063,1.41949313,66586.0,66585.0,0.002]
[1718658292911,1.36763817,66586.0,66585.0,0.002]
[1718658293195,1.41991028,66586.0,66585.0,0.002]
[1718658294144,1.87300216,66586.0,66585.0,0.002]
[1718658294348,1.89600216,66586.0,66585.0,0.002]
[1718658295184,1.94088861,66586.0,66585.0,0.002]
[1718658295407,1.59563916,66586.0,66585.0,0.002]
[1718658295612,1.6405417,66586.0,66585.0,0.002]
[1718658295814,1.59563916,66586.0,66585.0,0.002]
[1718658297232,1.64054506,66586.0,66585.0,0.002]
[1718658297475,1.59563916,66586.0,66585.0,0.002]
[1718658297990,3.00215116,66586.0,66585.0,0.002]
[1718658298210,3.00215116,66586.0,66562.0,0.0614]
[1718658298211,1.051634,66563.0,66562.0,0.0614]
[1718658298414,0.4507,66563.0,66562.0,0.0614]
[1718658299919,0.4507,66563.0,66562.0,0.0664]
[1718658299920,0.4517,66563.0,66562.0,0.0664]
[1718658300300,0.4507,66563.0,66562.0,0.0614]
[1718658300863,0.4507,66563.0,66562.0,0.0694]
[1718658301087,0.751167,66563.0,66562.0,0.0694]
[1718658301509,0.4507,66563.0,66562.0,0.0694]
[1718658301702,0.450691,66565.0,66562.0,0.07568198]
[1718658301904,0.150233,66563.0,66562.0,0.07568198]
[1718658302263,0.4507,66563.0,66562.0,0.07568198]
[1718658302872,0.4507,66563.0,66562.0,0.07168198]
[1718658303275,0.4507,66563.0,66562.0,0.07268198]
[1718658303638,0.150231,66564.0,66563.0,0.02]
[1718658303843,0.150233,66563.0,66562.0,0.09168198]
[1718658304061,0.150233,66563.0,66562.0,0.0854]
[1718658304270,0.4507,66563.0,66562.0,0.07568198]
[1718658304471,0.751167,66563.0,66562.0,0.07568198]
[1718658304637,0.751167,66563.0,66562.0,0.0654]
[1718658305687,0.79390608,66563.0,66562.0,0.0654]
[1718658306850,0.79390608,66563.0,66562.0,0.0694]
[1718658307838,0.04273908,66563.0,66562.0,0.0694]
[1718658308049,0.150231,66564.0,66563.0,0.02]
[1718658308252,0.250231,66564.0,66563.0,0.02]
[1718658308417,0.150233,66563.0,66562.0,0.0694]
[1718658308633,0.19294211,66563.0,66562.0,0.0694]
[1718658308827,0.19294211,66563.0,66562.0,0.070335]
[1718658309033,0.19294211,66563.0,66562.0,0.07559615]
[1718658309344,0.49340911,66563.0,66562.0,0.07159615]
[1718658309566,0.49340911,66563.0,66562.0,0.066335]
[1718658309745,1.09434311,66563.0,66562.0,0.066335]
[1718658309944,0.79387611,66563.0,66562.0,0.062335]
[1718658310355,0.49340911,66563.0,66562.0,0.066335]
[1718658311434,0.49340911,66563.0,66562.0,0.070335]
[1718658312745,0.79387611,66563.0,66562.0,0.070335]
[1718658314129,0.79359714,66563.0,66562.0,0.070335]
[1718658315384,1.09406414,66563.0,66562.0,0.070335]
[1718658316460,1.05135503,66563.0,66562.0,0.070335]
[1718658316643,1.09386318,66563.0,66562.0,0.070335]
[1718658316871,1.09386318,66563.0,66557.0,0.000935]
[1718658316872,1.652689,66558.0,66557.0,0.000935]
[1718658317050,1.68789334,66558.0,66557.0,0.000935]
[1718658317296,1.70817933,66558.0,66557.0,0.000935]
[1718658317404,1.44275446,66558.0,66557.0,0.000935]
[1718658317823,1.74324346,66558.0,66557.0,0.000935]
[1718658318034,2.04373246,66558.0,66557.0,0.000935]
[1718658318237,2.05373246,66558.0,66557.0,0.000935]
[1718658318445,2.04373246,66558.0,66557.0,0.000935]
[1718658319277,1.74324346,66558.0,66557.0,0.000935]
[1718658319482,1.71073531,66558.0,66557.0,0.000935]
[1718658319678,2.05372513,66558.0,66557.0,0.000935]
[1718658319915,1.76723613,66558.0,66557.0,0.000935]
[1718658320144,1.97173613,66558.0,66557.0,0.000935]
[1718658320378,1.95773613,66558.0,66557.0,0.000935]
[1718658320590,1.98573613,66558.0,66557.0,0.000935]
[1718658321150,1.99973613,66558.0,66557.0,0.000935]
[1718658321763,2.15244869,66558.0,66557.0,0.000935]
[1718658322170,2.45293769,66558.0,66557.0,0.000935]
[1718658322573,2.43893769,66558.0,66557.0,0.000935]
[1718658323151,1.98573613,66558.0,66557.0,0.000935]
[1718658323336,1.99973613,66558.0,66557.0,0.000935]
[1718658324134,1.99945708,66558.0,66557.0,0.000935]
[1718658324293,1.951331,66558.0,66557.0,0.000935]
[1718658324495,2.01924436,66558.0,66557.0,0.000935]
[1718658325299,2.31973336,66558.0,66557.0,0.000935]
[1718658326836,3.2846437,66558.0,66557.0,0.000935]
[1718658327171,1.051998,66540.0,66539.0,0.0648]
[1718658327384,1.23474581,66540.0,66539.0,0.0648]
[1718658327548,1.38881375,66540.0,66539.0,0.06968229]
[1718658327759,1.38881375,66540.0,66539.0,0.0648]
[1718658328163,1.44981938,66540.0,66539.0,0.0648]
[1718658328364,1.39981375,66540.0,66539.0,0.0648]
[1718658328818,1.38881375,66540.0,66539.0,0.0648]
[1718658329215,1.39981375,66540.0,66539.0,0.0648]
[1718658329426,1.24574581,66540.0,66539.0,0.0648]
[1718658329942,1.25574581,66540.0,66539.0,0.0648]
[1718658330366,1.21549882,66540.0,66539.0,0.0648]
[1718658332904,1.21549882,66540.0,66532.0,0.0633]
[1718658332905,1.052107,66533.0,66532.0,0.0633]
[1718658333135,0.20843699,66533.0,66529.0,0.0633]
[1718658333344,1.352772,66530.0,66529.0,0.0633]
[1718658333545,1.5287927,66530.0,66529.0,0.0633]
[1718658333764,1.66903969,66530.0,66529.0,0.0633]
[1718658333975,1.052233,66525.0,66524.0,0.000935]
[1718658334191,1.19431841,66525.0,66524.0,0.000935]
[1718658336006,1.20831841,66525.0,66524.0,0.000935]
[1718658336171,1.22231841,66525.0,66524.0,0.000935]
[1718658336568,1.20831841,66525.0,66524.0,0.000935]
[1718658336776,1.20831841,66525.0,66518.0,0.009394]
[1718658336777,0.05,66519.0,66518.0,0.009394]
[1718658336983,0.05,66519.0,66509.0,0.000935]
[1718658336984,0.350353,66510.0,66509.0,0.000935]
[1718658337302,1.46164036,66510.0,66509.0,0.000935]
[1718658337638,2.31423148,66510.0,66509.0,0.000935]
[1718658337840,2.97888535,66510.0,66509.0,0.000935]
[1718658338206,2.91369548,66510.0,66509.0,0.000935]
[1718658339219,2.2383606,66510.0,66509.0,0.000935]
[1718658339430,1.6388966,66510.0,66509.0,0.000935]
[1718658339629,1.58938318,66510.0,66509.0,0.000935]
[1718658340266,1.5471367,66510.0,66509.0,0.000935]
[1718658340485,1.3471367,66510.0,66509.0,0.000935]
[1718658340804,1.3611367,66510.0,66509.0,0.000935]
[1718658341621,1.3471367,66510.0,66509.0,0.000935]
[1718658341826,1.3471367,66510.0,66509.0,0.140735]
[1718658342042,0.014,66510.0,66509.0,0.1768085]
[1718658342241,0.014,66510.0,66509.0,0.1719634]
[1718658342464,0.178353,66510.0,66509.0,0.1719634]
[1718658342670,1.066471,66510.0,66509.0,0.1519634]
[1718658342877,1.066471,66510.0,66509.0,0.140735]
[1718658343288,1.367177,66510.0,66509.0,0.140735]
[1718658343487,1.152471,66510.0,66509.0,0.140735]
[1718658343691,1.165471,66510.0,66509.0,0.140735]
[1718658344137,2.05043278,66510.0,66509.0,0.000935]
[1718658344348,2.22343278,66510.0,66509.0,0.000935]
[1718658344470,2.22343278,66510.0,66499.0,0.009383]
[1718658344471,1.052628,66500.0,66499.0,0.009383]
[1718658344676,1.367528,66500.0,66499.0,0.009383]
[1718658344874,1.668279,66500.0,66499.0,0.009383]
[1718658345076,2.949978,66500.0,66499.0,0.009383]
[1718658345355,2.26404201,66500.0,66499.0,0.009383]
[1718658345588,2.18715879,66500.0,66499.0,0.009383]
[1718658345792,3.37161678,66500.0,66499.0,0.009383]
[1718658346033,2.98431829,66500.0,66499.0,0.009383]
[1718658346647,2.99331829,66500.0,66499.0,0.009383]
[1718658346853,1.99496729,66500.0,66499.0,0.009383]
[1718658347066,1.62290029,66500.0,66499.0,0.009383]
[1718658347268,1.26088841,66500.0,66499.0,0.070483]
[1718658347466,1.170628,66500.0,66499.0,0.070483]
[1718658347677,0.869877,66500.0,66499.0,0.070483]
[1718658347892,0.869877,66500.0,66499.0,0.149383]
[1718658348757,0.869877,66500.0,66499.0,0.16062978]
[1718658348981,0.118,66500.0,66499.0,0.18062978]
[1718658349191,0.018,66500.0,66499.0,0.18062978]
[1718658349397,0.268375,66500.0,66499.0,0.16062978]
[1718658349606,0.569126,66500.0,66499.0,0.16062978]
[1718658350010,0.869877,66500.0,66499.0,0.18062978]
[1718658350424,0.109,66500.0,66499.0,0.18062978]
[1718658350621,0.112,66500.0,66499.0,0.18062978]
[1718658350824,0.563126,66500.0,66499.0,0.18062978]
[1718658351240,0.854877,66500.0,66499.0,0.18062978]
[1718658351451,0.857877,66500.0,66499.0,0.18062978]
[1718658353446,0.557126,66500.0,66499.0,0.18062978]
[1718658354536,0.33309933,66500.0,66499.0,0.18062978]
[1718658354719,0.48347433,66500.0,66499.0,0.18062978]
[1718658355494,0.48347433,66500.0,66499.0,0.16062978]
[1718658356136,0.48347433,66500.0,66499.0,0.18062978]
[1718658356511,0.48347433,66500.0,66499.0,0.16062978]
[1718658356713,0.48347433,66500.0,66499.0,0.18062978]
[1718658357588,0.253375,66500.0,66499.0,0.18062978]
[1718658357791,0.003,66500.0,66499.0,0.20057266]
[1718658358010,0.003,66500.0,66499.0,0.81443554]
[1718658358244,0.003,66500.0,66499.0,0.35330154]
[1718658358441,0.00272163,66500.0,66499.0,0.35330154]
[1718658359118,0.00372163,66500.0,66499.0,0.35330154]
[1718658359497,0.151375,66500.0,66499.0,0.18062978]
[1718658359628,0.150371,66502.0,66501.0,0.02]
[1718658359831,0.250371,66502.0,66501.0,0.01121028]
[1718658360041,0.150373,66501.0,66500.0,0.02]
[1718658360243,0.150373,66501.0,66500.0,0.03121028]
[1718658361520,0.153373,66501.0,66500.0,0.03121028]
[1718658361922,0.150373,66501.0,66500.0,0.03121028]
[1718658362349,0.156373,66501.0,66500.0,0.03121028]
[1718658362752,0.006,66501.0,66500.0,0.107141]
[1718658362962,0.003,66501.0,66500.0,0.167541]
[1718658363157,0.003,66501.0,66500.0,0.3014798]
[1718658363368,0.003,66501.0,66500.0,0.242941]
[1718658363756,0.006,66501.0,66500.0,0.242941]
[1718658364229,0.003,66501.0,66500.0,0.242941]
[1718658364484,0.15609982,66501.0,66500.0,0.242941]
[1718658364849,0.15609982,66501.0,66500.0,0.23173072]
[1718658365060,0.15609982,66501.0,66500.0,0.24394126]
[1718658365281,0.153373,66501.0,66500.0,0.24394126]
[1718658365502,0.150373,66501.0,66500.0,0.24394126]
[1718658365652,0.150373,66501.0,66500.0,0.24494126]
[1718658366054,0.150373,66501.0,66500.0,0.24294126]
[1718658366267,0.1,66506.0,66505.0,0.01]
[1718658366422,0.451074,66508.0,66507.0,0.061]
[1718658366634,0.59316563,66508.0,66507.0,0.061]
[1718658367315,0.14209163,66508.0,66507.0,0.061]
[1718658367761,0.59316363,66508.0,66507.0,0.1394]
[1718658368143,0.60116363,66508.0,66507.0,0.1394]
[1718658368690,0.60116363,66508.0,66507.0,0.1594]
[1718658368949,0.15809163,66508.0,66507.0,0.17534]
[1718658369163,0.15809163,66508.0,66507.0,0.1594]
[1718658369385,0.15809163,66508.0,66507.0,0.17061216]
[1718658369603,0.30094863,66508.0,66507.0,0.17061216]
[1718658370038,0.30094863,66508.0,66507.0,0.1394]
[1718658370039,0.60166363,66508.0,66507.0,0.1394]
[1718658370272,0.90237863,66508.0,66507.0,0.1394]
[1718658370494,0.150364,66505.0,66504.0,0.0613]
[1718658370733,0.451093,66505.0,66504.0,0.0613]
[1718658370935,1.152551,66505.0,66504.0,0.07250028]
[1718658371141,1.152551,66505.0,66504.0,0.0613]
[1718658371360,1.23559159,66505.0,66504.0,0.0613]
[1718658371771,1.23959159,66505.0,66504.0,0.0613]
[1718658372187,1.24359159,66505.0,66504.0,0.0613]
[1718658372386,1.24296286,66505.0,66504.0,0.0613]
[1718658374321,1.2427217,66505.0,66504.0,0.0613]
[1718658374565,0.9419927,66505.0,66504.0,0.0613]
[1718658375655,1.2427217,66505.0,66504.0,0.0613]
[1718658376282,1.43611101,66505.0,66504.0,0.0613]
[1718658378023,1.43611101,66505.0,66504.0,0.0813]
[1718658378157,0.53392401,66505.0,66504.0,0.0813]
[1718658378381,0.83465301,66505.0,66504.0,0.0813]
[1718658378565,1.13538201,66505.0,66504.0,0.0613]
[1718658378994,1.43611101,66505.0,66504.0,0.0613]
[1718658379375,1.13538201,66505.0,66504.0,0.0613]
[1718658380396,1.05297015,66505.0,66504.0,0.0613]
[1718658380627,1.15518819,66505.0,66504.0,0.0613]
[1718658380954,0.96179888,66505.0,66504.0,0.0613]
[1718658381205,1.1471758,66505.0,66504.0,0.0613]
[1718658384560,0.85065867,66505.0,66504.0,0.0613]
[1718658384967,1.00102267,66505.0,66504.0,0.0613]
[1718658386716,1.10102267,66505.0,66504.0,0.0613]
[1718658387627,1.40175167,66505.0,66504.0,0.0613]
[1718658388731,1.10102267,66505.0,66504.0,0.0613]
[1718658389150,1.40175167,66505.0,66504.0,0.0613]
[1718658392099,1.40175167,66505.0,66504.0,0.0813]
[1718658392303,1.40175167,66505.0,66504.0,0.0613]
[1718658395840,1.40175167,66505.0,66504.0,0.0813]
[1718658396045,1.40175167,66505.0,66504.0,0.0613]
[1718658396778,1.41742258,66505.0,66504.0,0.0613]
[1718658397005,1.11669358,66505.0,66504.0,0.0613]
[1718658397211,1.11669358,66505.0,66504.0,0.13723072]
[1718658398040,1.41742258,66505.0,66504.0,0.13723072]
[1718658399028,1.4172775,66505.0,66504.0,0.13723072]
[1718658399223,1.1165485,66505.0,66504.0,0.13723072]
[1718658399492,1.1165485,66505.0,66504.0,0.18228559]
[1718658399638,0.30312079,66505.0,66504.0,0.42681447]
[1718658399849,0.30312079,66505.0,66504.0,0.43801862]
[1718658400097,0.30312079,66505.0,66504.0,0.58838462]
[1718658400392,0.11774387,66505.0,66504.0,0.42801862]
[1718658400729,0.00085,66508.0,66506.0,0.1607]
[1718658400942,0.151207,66508.0,66507.0,0.1607]
[1718658401161,0.43127011,66508.0,66507.0,0.1607]
[1718658401369,0.43127011,66508.0,66507.0,0.17190415]
[1718658402217,0.43827011,66508.0,66507.0,0.17190415]
[1718658402456,0.44627011,66508.0,66507.0,0.17190415]
[1718658402676,0.43127011,66508.0,66507.0,0.22953907]
[1718658403292,0.11921051,66508.0,66507.0,0.22953907]
[1718658403512,0.12221051,66508.0,66507.0,0.22953907]
[1718658403729,0.57317945,66508.0,66507.0,0.1705573]
[1718658404174,0.88924092,66508.0,66507.0,0.1705573]
[1718658404379,0.57717945,66508.0,66507.0,0.1705573]
[1718658404553,1.18995842,66508.0,66507.0,0.1705573]
[1718658404763,0.58852842,66508.0,66507.0,0.1705573]
[1718658404972,0.88924342,66508.0,66507.0,0.1705573]
[1718658405187,1.18995842,66508.0,66507.0,0.1705573]
[1718658405594,0.88924342,66508.0,66507.0,0.1705573]
[1718658406492,0.58852842,66508.0,66507.0,0.1705573]
[1718658407072,0.88924342,66508.0,66507.0,0.1705573]
[1718658408377,0.88924342,66508.0,66507.0,0.15935315]
[1718658408583,1.18995842,66508.0,66507.0,0.1705573]
[1718658409000,1.18995842,66508.0,66507.0,0.15935315]
[1718658409610,1.18995842,66508.0,66507.0,0.97499445]
[1718658409611,0.43817142,66508.0,66507.0,0.97499445]
[1718658409773,0.00785,66508.0,66507.0,0.97499445]
[1718658409997,0.007,66508.0,66507.0,1.63761772]
[1718658410194,0.00086,66525.0,66524.0,0.16465315]
[1718658410391,0.00086,66525.0,66524.0,0.26811847]
[1718658410594,0.00086,66525.0,66524.0,0.57116835]
[1718658410813,0.00086,66525.0,66524.0,0.59233956]
[1718658410974,0.00086,66525.0,66524.0,0.35601856]
[1718658411189,0.00086,66525.0,66524.0,0.44201856]
[1718658411999,0.00086,66525.0,66524.0,1.19362556]
[1718658412206,0.00186,66525.0,66524.0,1.19962556]
[1718658412424,0.00186,66525.0,66524.0,0.89898256]
[1718658412633,0.00086,66525.0,66524.0,0.89298256]
[1718658413235,0.00186,66525.0,66524.0,0.89998256]
[1718658413445,0.00186,66525.0,66524.0,0.81398256]
[1718658413853,0.00186,66525.0,66524.0,0.35301856]
[1718658414072,0.00186,66525.0,66524.0,0.36001856]
[1718658414073,0.00286,66525.0,66524.0,0.36001856]
[1718658414935,0.303498,66525.0,66524.0,0.32390009]
[1718658415127,0.453817,66525.0,66524.0,0.32390009]
[1718658415333,0.153179,66525.0,66524.0,0.33138203]
[1718658415500,0.00286,66525.0,66524.0,0.34249687]
[1718658416660,0.00286,66525.0,66524.0,0.37674656]
[1718658417717,0.453817,66525.0,66524.0,0.17111484]
[1718658417944,1.055093,66525.0,66524.0,0.17111484]
[1718658418148,1.055093,66525.0,66524.0,0.16]
[1718658418755,0.754455,66525.0,66524.0,0.16]
[1718658419041,0.754455,66525.0,66524.0,0.17865315]
[1718658419471,0.153179,66525.0,66524.0,0.17865315]
[1718658419836,0.153179,66525.0,66524.0,0.18976799]
[1718658420495,0.00286,66525.0,66524.0,0.34249687]
[1718658421143,0.754455,66525.0,66524.0,0.02511484]
[1718658421367,0.754455,66525.0,66524.0,0.014]
[1718658421368,1.055093,66525.0,66524.0,0.014]
[1718658421559,1.86464629,66525.0,66524.0,0.014]
[1718658421934,2.04706529,66525.0,66524.0,0.014]
[1718658422296,1.86364629,66525.0,66524.0,0.007]
[1718658422613,0.451026,66515.0,66514.0,0.0649]
[1718658422783,0.75171,66515.0,66514.0,0.0649]
[1718658422982,0.75171,66515.0,66514.0,0.0755809]
[1718658423303,0.75171,66515.0,66514.0,0.0649]
[1718658423525,0.75171,66515.0,66514.0,0.0106809]
[1718658423526,1.052394,66515.0,66514.0,0.0106809]
[1718658423665,1.453078,66515.0,66514.0,0.0106809]
[1718658423872,0.751787,66508.0,66507.0,0.0615]
[1718658424076,0.551072,66508.0,66507.0,0.0615]
[1718658424298,0.551072,66508.0,66507.0,0.09083405]
[1718658424499,0.551072,66508.0,66507.0,0.0615]
[1718658425477,0.150335,66518.0,66516.0,0.01865315]
[1718658425627,0.150335,66518.0,66516.0,0.09595315]
[1718658425628,0.551012,66517.0,66516.0,0.09595315]
[1718658426616,0.851687,66517.0,66516.0,0.09595315]
[1718658427355,0.851687,66517.0,66516.0,0.0773]
[1718658427954,0.862687,66517.0,66516.0,0.0773]
[1718658428151,0.95718886,66517.0,66516.0,0.09595315]
[1718658428577,0.96918886,66517.0,66516.0,0.09695315]
[1718658428778,0.96918886,66517.0,66516.0,0.0783]
[1718658429394,1.28123687,66517.0,66516.0,0.0783]
[1718658429777,1.58191187,66517.0,66516.0,0.001]
[1718658433658,2.09748687,66517.0,66516.0,0.001]
[1718658433908,2.23001887,66517.0,66516.0,0.001]
[1718658434138,2.53069387,66517.0,66516.0,0.001]
[1718658434485,2.23001887,66517.0,66516.0,0.001]
[1718658434714,2.53069387,66517.0,66516.0,0.001]
[1718658437811,3.66136887,66517.0,66516.0,0.001]
[1718658438405,3.56342275,66517.0,66516.0,0.001]
[1718658438648,1.35328,66505.0,66504.0,0.000935]
[1718658438859,1.45328,66505.0,66504.0,0.000935]
[1718658439770,1.51534456,66505.0,66504.0,0.000935]
[1718658440173,1.45328,66505.0,66504.0,0.000935]
[1718658440491,1.51529217,66505.0,66504.0,0.003935]
[1718658441168,1.51529217,66505.0,66504.0,0.000935]
[1718658441737,1.51929217,66505.0,66504.0,0.000935]
[1718658442141,1.22256317,66505.0,66504.0,0.000935]
[1718658442363,1.160551,66505.0,66504.0,0.062335]
[1718658443017,1.22260287,66505.0,66504.0,0.062335]
[1718658443671,3.62904857,66505.0,66504.0,0.000935]
[1718658443853,2.85904857,66505.0,66504.0,0.000935]
[1718658444057,3.00744508,66505.0,66504.0,0.000935]
[1718658444271,3.40817408,66505.0,66504.0,0.000935]
[1718658444478,4.16817408,66505.0,66504.0,0.000935]
[1718658444700,4.38090296,66505.0,66504.0,0.000935]
[1718658444857,1.353361,66501.0,66500.0,0.000935]
[1718658445066,2.09597658,66501.0,66500.0,0.000935]
[1718658445414,2.64312858,66501.0,66500.0,0.000935]
[1718658445853,2.65272858,66501.0,66500.0,0.000935]
[1718658446545,3.08483919,66501.0,66500.0,0.000935]
[1718658446768,3.00042371,66501.0,66500.0,0.000935]
[1718658446988,2.76132367,66501.0,66500.0,0.000935]
[1718658447207,3.11207067,66501.0,66500.0,0.000935]
[1718658447428,0.15,66498.0,66497.0,1e-08]
[1718658447642,1.82463605,66498.0,66497.0,1e-08]
[1718658447860,3.02767605,66498.0,66497.0,1e-08]
[1718658448073,3.62919605,66498.0,66497.0,1e-08]
[1718658448286,3.62919605,66498.0,66495.0,0.00183038]
[1718658448287,1.202691,66496.0,66495.0,0.00183038]
[1718658448504,3.66609761,66496.0,66495.0,0.00183038]
[1718658448739,0.901947,66494.0,66493.0,1e-08]
[1718658448952,3.02848345,66494.0,66493.0,1e-08]
[1718658449172,3.00004145,66494.0,66493.0,1e-08]
[1718658449382,3.97494145,66494.0,66493.0,1e-08]
[1718658449624,4.12765401,66494.0,66493.0,1e-08]
[1718658449838,4.15065401,66494.0,66493.0,1e-08]
[1718658450059,0.15,66484.0,66477.0,0.0651]
[1718658450308,0.15,66484.0,66473.0,0.1444]
[1718658450309,1.016992,66481.0,66473.0,0.1444]
[1718658450500,1.66445617,66481.0,66473.0,0.1444]
[1718658450713,1.96529317,66481.0,66473.0,0.1444]
[1718658450929,2.26613017,66481.0,66473.0,0.1444]
[1718658451135,2.50056039,66481.0,66473.0,0.1444]
[1718658451347,3.96856839,66481.0,66473.0,0.1444]
[1718658451571,3.66773139,66481.0,66473.0,0.1444]
[1718658451978,3.76773139,66481.0,66473.0,0.1444]
[1718658452295,3.32625839,66481.0,66473.0,0.1444]
[1718658452498,3.23849011,66481.0,66473.0,0.1444]
[1718658452917,3.18480499,66481.0,66473.0,0.1444]
[1718658453122,2.13468406,66481.0,66473.0,0.1444]
[1718658453286,2.08848406,66481.0,66473.0,0.1444]
[1718658453485,2.38932106,66481.0,66473.0,0.1444]
[1718658454588,2.48932106,66481.0,66473.0,0.0649]
[1718658454793,2.54203362,66481.0,66473.0,0.0649]
[1718658454965,2.08848406,66481.0,66473.0,0.0649]
[1718658455381,1.12248406,66481.0,66480.0,0.15628815]
[1718658455606,0.3591631,66481.0,66480.0,0.16708992]
[1718658455765,0.3591631,66481.0,66480.0,0.14843677]
[1718658455962,1.080929,66481.0,66480.0,0.14843677]
[1718658456262,0.19954875,66481.0,66480.0,0.15628815]
[1718658456523,0.50038575,66481.0,66480.0,0.15628815]
[1718658456687,0.766092,66481.0,66480.0,0.16714531]
[1718658456892,0.780092,66481.0,66480.0,0.15628815]
[1718658457519,0.866092,66481.0,66480.0,0.15628815]
[1718658457719,0.872092,66481.0,66480.0,0.15628815]